{"text_format":"1","workbook":"xlsx","n_sheets":5,"sheets":["GUIA DE USO","Generación de Matriz de Costo","TRAMITE","TRAMITE (2)","RESUMEN"],"not_rendered":{"charts":0,"images":5,"macros":1,"external_links":0,"defined_names":4,"comments":2,"pivot_tables":0},"unopened":[],"bounds":{"document_bytes":16777216,"sheet_cells":100000,"rows_first":2000,"rows_last":500,"rows_between":2000,"halvings":0,"cell_chars":16384,"cell_head_chars":4096},"cells_cut":0,"cells_raw":0,"read":"whole","date_system":"1900"}

{"sheet":"GUIA DE USO","index":0,"n_rows":17,"n_cols":3,"rows_kept":17,"cut":false,"hidden":false,"merged":[[0,0,0,1]]}
["Instrucciones para llenar la matriz y obtener el diagnóstico económico de cada trámite"]
[1,"Acceda a la hoja \"Generación de Matriz de Costo\" y dar clic en el boton \"Generar Matriz de costo\", para que se genere la hoja TRAMITE(2) y a partir de esta hoja ingresar los datos para cada trámite."]
[2,"De acuerdo la cantidad de trámites que tiene su institución, añada tantas hojas de cálculo como sean necesarias hasta completar el número de trámites que tiene la institución. Se recomienda etiquetar cada hoja de cálculo generada con el identificador del trámite,  a partir de la hoja TRAMITE(2), la hoja con el nombre \" TRAMITE \" no debe ser modificada."]
[3,"En cada hoja de cálculo creada, etiquetar con los campos: IDENTIFICADOR y TRÁMITE"]
[4,"Ingresar un requisito en cada fila, esta información debe ser igual a la del portal GOB.EC del apartado \"Requisitos Obligatorios\" cargados en cada trámite."]
[5,"Para cada requisito:\n\nEscoja y seleccione de las opciones \"SI o NO\". Para identificar si el requisito es preexistente consultar del listado de requisitos preexistentes definidos por el ente rector , verificar el listado publicado en la sección \"Normativa y manuales\" de la plataforma GOB.EC.\nAl escoger la opción \"SI\":\n- Se coloca automáticamente un valor predeterminado en el campo \"Recolección de información preexistente (HORAS)\", los demás campos se bloquean para su ingreso.\nAL escoger la opción \"NO\", se habilitan los siguientes campos a ser registrados:\n- Costo del requisito (CR) (DÓLARES)\n   Se deberá calcular el costo de cada requisito que tendría considerando: la tasa en el caso de instituciones públicas, el precio mínimo en el caso de empresas privadas y/o la tarifa mínima en el caso de profesionales que tendría que pagar el administrado para obtener cada requisito (sin considerar impuestos).\n- Identificación y comprensión de los requisitos\n   Seleccionar si el emisor del requisito es el mismo administrado (Ej: solicitudes), una institución pública (Ej: Permiso emitido por otra entidad) o un profesional/empresa privada (Ej: Estudio técnico). La matriz asignará los valores correspondientes a cada uno\n- Reuniones con personal de servicios externos\n Seleccionar si el emisor del requisito es una institución pública o privada. Si lo genera el mismo administrado, escoger \"No aplica\"\n- Elaboración y generación de nueva información (HORAS)\n   Las instituciones deberán estimar el tiempo requerido para obtener el requisito\n"]
[6,"Si los requisitos no son preexistentes, complete los siguientes campos:\n\n- Costo del requisito (CR) (DÓLARES)\n   Se deberá calcular el costo de cada requisito que tendría considerando: la tasa en el caso de instituciones públicas, el precio mínimo en el caso de empresas privadas y/o la tarifa mínima en el caso de profesionales que tendría que pagar el administrado para obtener cada requisito (sin considerar impuestos).\n- Identificación y comprensión de los requisitos\n   Seleccionar si el emisor del requisito es el mismo administrado (Ej: solicitudes), una institución pública (Ej: Permiso emitido por otra entidad) o un profesional/empresa privada (Ej: Estudio técnico). La matriz asignará los valores correspondientes a cada uno\n- Reuniones con personal de servicios externos\n Seleccionar si el emisor del requisito es una institución pública o privada. Si lo genera el mismo administrado, escoger \"No aplica\"\n- Elaboración y generación de nueva información (HORAS)\n   Las instituciones deberán estimar el tiempo requerido para obtener el requisito","u"]
[7,"Llenar los siguientes campos:\n- Costo del trámite (CT) (DÓLARES): En caso de que el trámite tenga un costo (tasa, especie, etc), ingresar el valor sin impuestos, caso contrario, ingresar \"0\"\n- Tiempo de permanencia (TP) (HORAS): Expresar el tiempo en horas que le toma al administrado su permanecia dentro de la entidad mientras realiza el trámite (se considerará la suma de todos los momentos -entrega, retiro-). Para este valor, se considerará el caso estándar\n- Número de visitas a la institución (NV): Número de veces que el administrado acude a la entidad en un caso estándar\n- Realización de reuniones con el personal interno para la gestión del trámite en el caso de personas jurídicas (HORAS): En caso de que el trámite sea para personas jurídicas (públicas o privadas), las instituciones deberán estimar el tiempo interno que le toma a éstas el reunirne para temas concernientes al trámite. El valor debe expresarse en horas\n- Llenado de formularios, elaboración de solicitudes y reportes (HORAS): Se debe estimar el tiempo que invierte el administrado en llenar el formulario, solicitud, reporte u otros, que entrega a la institución para iniciar el trámite. Este valor debe expresarse en horas.\n\n*El campo \"Costo de movilización (CoM) (DÓLARES)\", se llena automáticamente"]
[8,"Verificar si se generó el costo administrativo, el costo de oportunidad y el diagnóstico económico del trámite (filas: 46, 47 y 48)"]
[null,"Generación de archivos"]
[9,"Cree una nueva carpeta donde se van almacenar los archivos generados."]
[10,"Presionar el botón \"Generar Archivos \", el cual permitirá generar un archivo por cada hoja que se encuentre creada."]
[11,"Al momento de seleccionar la opción \"Generar Archivos\", esperar unos segundos y se despliega una ventana, debe escoger la opción de \"No\"\n"]
[12,"Todos los archivos generados deben ser guardados en la carpeta que creo, y debe seleccionar el tipo: \" Libro de Excel habilitado para macros y proceder a guardar \"\n\n\nNota: Por cada hoja de cálculo del libro Matriz para diagnóstico económico (trámite) se va a generar un archivo. Además se generarán 2 archivos (guía de uso y generación de matriz de costo). Estos no serán requeridos para la carga en la plataforma GOB.EC"]
[13,"Dentro de la plataforma GOB.EC, de conformidad con la guía emitida para el efecto, se deberá registrar por cada trámite publicado, el valor del diagnóstico económico, así como el archivo resultante (paso 12)"]
[]
[null,"PRIORIZACIÓN DE TRÁMITES: Una vez que se haya registrado el valor del diagnóstico económico y de la puntuación de todos y cada uno de los trámites publicados en la plataforma GOB.EC, la plataforma realizará la identificación de los trámites a simplificar de acuerdo a los criterios definidores en el artículo 11 de la norma técnica de diagnóstico económico y priorización de trámites administrativos"]

{"sheet":"Generación de Matriz de Costo","index":1,"n_rows":0,"n_cols":0,"rows_kept":0,"cut":false,"hidden":false,"merged":[]}

{"sheet":"TRAMITE","index":2,"n_rows":48,"n_cols":37,"rows_kept":48,"cut":false,"hidden":false,"merged":[[8,18,8,21],[8,22,8,31],[40,3,40,8],[42,3,42,8],[40,1,43,2],[43,3,43,8],[35,3,35,8],[41,3,41,8],[36,3,36,8],[37,3,37,8],[38,3,38,8],[8,3,9,3],[35,1,38,2],[1,13,2,13],[1,0,1,9],[33,1,33,9],[3,4,3,7],[9,4,9,5],[8,4,8,9],[9,6,9,7],[6,1,6,9],[8,2,9,2],[8,1,9,1],[3,2,3,3],[4,2,4,9]]}
[]
["MATRIZ DE COSTOS",null,null,null,null,null,null,null,null,null,null,null,null,"SALARIO BÁSICO UNIFICADO (SBU)","DÓLARES",null,"EMISOR DE REQUISITO","TIEMPO (HORAS)",null,"Requisito Preexistente",null,"Tiempo de traslado (HORAS)",null,"Reuniones con personal de servicios externos"]
[null,null,null,null,null,null,null,null,null,null,null,null,null,null,400,null,"Administrado",0.16,null,"SI",null,2,null,"Público",2]
[null,"IDENTIFICADOR:",null,null,null,null,null,null,null,null,null,null,null,null,null,null,"Público",2,null,"NO",null,null,null,"Privado",1]
[null,"TRÁMITE:",null,null,null,null,null,null,null,null,null,null,null,null,null,null,"Privado",1,null,null,null,null,null,"No Aplica"]
[]
[null,"POR REQUISITO"]
[]
[null,"REQUISITOS","Indique si el requisito es preexistente","Costo del requisito (CR) (DÓLARES)","COSTO DE OPORTUNIDAD",null,null,null,null,null,null,null,null,null,null,null,null,null,"COSTO ADMINISTRATIVO",null,null,null,"COSTO DE OPORTUNIDAD",null,null,null,null,null,null,null,null,null,"DIAGNÓSTICO ECONÓMICO DEL TRÁMITES"]
[null,null,null,null,"Identificación y comprensión de los requisitos",null,"Reuniones con personal de servicios externos",null,"*Recolección de información preexistente (HORAS)","*Elaboración y generación de nueva información (HORAS)",null,null,null,null,null,null,"IDENTIFICADOR","TRÁMITE","Costo de cumplimiento de requisitos para el administrado (CRT)","Costo de procedimiento realizado por el administrado (CP)","Costo de traslado (CT)","Costo Administrativo","Identificación y comprensión de los requisitos","Realización de reuniones con el personal interno para la gestión del trámite en el caso de personas jurídicas","Reuniones con personal de servicios externos","Recolección de información preexistente: ","Elaboración y generación de nueva información","Llenado de formularios, elaboración de solicitudes y reportes","Tiempo de traslados hacia y desde la administración","Tiempo de respuesta","Otras actividades relacionadas con el trámite","Costo Oportunidad (CO)","Carga administrativa (CgA)"]
[1,null,"NO",null,null,{"$f":"IF(ISBLANK(E11),\"\",IF(E11=\"Administrado\",R$3,IF(E11=\"Público\",R$4,R$5)))","v":""},null,{"$f":"IF(ISBLANK(G11),\"\",IF(G11=\"Público\",Y$3,IF(G11=\"Privado\",Y$4,Y$5)))","v":""},0,null,null,null,null,null,null,null,{"$f":"D4","v":0},{"$f":"D5","v":0},{"$f":"D31+J36","v":0},{"$f":"(J37*1.5*O3)/160","v":0},{"$f":"J39","v":0},{"$f":"SUM(S11:U11)","v":0},{"$f":"F31","v":0},{"$f":"J41","v":0},{"$f":"H31","v":0},{"$f":"I31","v":0},{"$f":"J31","v":0},{"$f":"J42","v":0},{"$f":"V3*J38","v":0},{"$f":"J43","v":0},{"$f":"J44","v":0},{"$f":"SUM(W11:AE11)*((1.5*O3)/160)","v":0},{"$f":"V11+AF11","v":0}]
[2,null,"NO",null,null,{"$f":"IF(ISBLANK(E12),\"\",IF(E12=\"Administrado\",R$3,IF(E12=\"Público\",R$4,R$5)))","v":""},null,{"$f":"IF(ISBLANK(G12),\"\",IF(G12=\"Público\",Y$3,IF(G12=\"Privado\",Y$4,Y$5)))","v":""},0]
[3,null,null,null,null,"",null,""]
[4,null,null,null,null,"",null,""]
[5,null,null,null,null,"",null,""]
[6,null,null,null,null,"",null,""]
[7,null,null,null,null,"",null,""]
[8,null,null,null,null,"",null,""]
[9,null,null,null,null,"",null,""]
[10,null,null,null,null,"",null,""]
[11,null,null,null,null,"",null,""]
[12,null,null,null,null,"",null,""]
[13,null,null,null,null,"",null,""]
[14,null,null,null,null,"",null,""]
[15,null,null,null,null,"",null,""]
[16,null,null,null,null,"",null,""]
[17,null,null,null,null,"",null,""]
[18,null,null,null,null,"",null,""]
[19,null,null,null,null,"",null,""]
[20,null,null,null,null,"",null,""]
[null,"TOTALES",null,{"$f":"SUM(D11:D30)","v":0},null,{"$f":"SUM(F11:F30)","v":0},null,0,{"$f":"SUM(I11:I30)","v":0},0]
[null,null,null,null,null,null,null,null,"*Para cálculo en horas, dividir los minutos para 60"]
[]
[null,"POR TRÁMITE"]
[null,null,null,null,null,null,null,null,null,null,null,null,null,null,null,null,null,null,null,null,null,null,null,null,null,null,null,null,null,null,null,null,null,null,"Totalmente en linea"]
[null,"COSTO ADMINISTRATIVO",null,"Costo del trámite (CT) (DÓLARES)",null,null,null,null,null,0,null,null,null,null,null,null,null,null,null,null,null,null,null,null,null,null,null,null,null,null,null,null,null,null,"No se completa totalmente en linea"]
[null,null,null,"*Tiempo de permanencia (TP) (HORAS)",null,null,null,null,null,0,"Totalmente en linea"]
[null,null,null,"Número de visitas a la institución (NV)",null,null,null,null,null,0]
[null,null,null,"Costo de Traslado (CTr)",null,null,null,null,null,{"$f":"J38*1","v":0}]
[]
[null,"COSTO DE OPORTUNIDAD",null,"*Realización de reuniones con el personal interno para la gestión del trámite en el caso de personas jurídicas (HORAS)",null,null,null,null,null,0,"Persona natural",null,null,null,null,null,null,null,null,null,null,null,null,null,null,null,null,null,null,null,null,null,null,null,null,"Jurídico","Público"]
[null,null,null,"*Llenado de formularios, elaboración de solicitudes y reportes (HORAS)",null,null,null,null,null,null,null,null,null,null,null,null,null,null,null,null,null,null,null,null,null,null,null,null,null,null,null,null,null,null,null,"Persona natural","Privado"]
[null,null,null,"*Tiempo de respuesta (HORAS) (Tiempo de Servicio). "]
[null,null,null,"*Otras actividades relacionadas con el trámite (HORAS)"]
[]
[null,"COSTO ADMINISTRATIVO",{"$f":"V11","v":0}]
[null,"COSTO OPORTUNIDAD (CO)",{"$f":"AF11","v":0}]
[null,"DIAGNÓSTICO ECONÓMICO DEL TRÁMITE (Carga administrativa (CgA))",{"$f":"AG11","v":0}]

{"sheet":"TRAMITE (2)","index":3,"n_rows":48,"n_cols":37,"rows_kept":48,"cut":false,"hidden":false,"merged":[[40,1,43,2],[40,3,40,8],[41,3,41,8],[42,3,42,8],[43,3,43,8],[33,1,33,9],[35,1,38,2],[35,3,35,8],[36,3,36,8],[37,3,37,8],[38,3,38,8],[8,22,8,31],[9,4,9,5],[9,6,9,7],[1,0,1,9],[1,13,2,13],[3,2,3,3],[3,4,3,7],[4,2,4,9],[6,1,6,9],[8,1,9,1],[8,2,9,2],[8,3,9,3],[8,4,8,9],[8,18,8,21]]}
[]
["MATRIZ DE COSTOS",null,null,null,null,null,null,null,null,null,null,null,null,"SALARIO BÁSICO UNIFICADO (SBU)","DÓLARES",null,"EMISOR DE REQUISITO","TIEMPO (HORAS)",null,"Requisito Preexistente",null,"Tiempo de traslado (HORAS)",null,"Reuniones con personal de servicios externos"]
[null,null,null,null,null,null,null,null,null,null,null,null,null,null,400,null,"Administrado",0.16,null,"SI",null,2,null,"Público",2]
[null,"IDENTIFICADOR:",null,null,null,null,null,null,null,null,null,null,null,null,null,null,"Público",2,null,"NO",null,null,null,"Privado",1]
[null,"TRÁMITE:",null,null,null,null,null,null,null,null,null,null,null,null,null,null,"Privado",1,null,null,null,null,null,"No Aplica"]
[]
[null,"POR REQUISITO"]
[]
[null,"REQUISITOS","Indique si el requisito es preexistente","Costo del requisito (CR) (DÓLARES)","COSTO DE OPORTUNIDAD",null,null,null,null,null,null,null,null,null,null,null,null,null,"COSTO ADMINISTRATIVO",null,null,null,"COSTO DE OPORTUNIDAD",null,null,null,null,null,null,null,null,null,"DIAGNÓSTICO ECONÓMICO DEL TRÁMITES"]
[null,null,null,null,"Identificación y comprensión de los requisitos",null,"Reuniones con personal de servicios externos",null,"*Recolección de información preexistente (HORAS)","*Elaboración y generación de nueva información (HORAS)",null,null,null,null,null,null,"IDENTIFICADOR","TRÁMITE","Costo de cumplimiento de requisitos para el administrado (CRT)","Costo de procedimiento realizado por el administrado (CP)","Costo de traslado (CT)","Costo Administrativo","Identificación y comprensión de los requisitos","Realización de reuniones con el personal interno para la gestión del trámite en el caso de personas jurídicas","Reuniones con personal de servicios externos","Recolección de información preexistente: ","Elaboración y generación de nueva información","Llenado de formularios, elaboración de solicitudes y reportes","Tiempo de traslados hacia y desde la administración","Tiempo de respuesta","Otras actividades relacionadas con el trámite","Costo Oportunidad (CO)","Carga administrativa (CgA)"]
[1,null,"NO",null,null,{"$f":"IF(ISBLANK(E11),\"\",IF(E11=\"Administrado\",R$3,IF(E11=\"Público\",R$4,R$5)))","v":""},null,{"$f":"IF(ISBLANK(G11),\"\",IF(G11=\"Público\",Y$3,IF(G11=\"Privado\",Y$4,Y$5)))","v":""},0,null,null,null,null,null,null,null,{"$f":"D4","v":0},{"$f":"D5","v":0},{"$f":"D31+J36","v":0},{"$f":"(J37*1.5*O3)/160","v":0},{"$f":"J39","v":0},{"$f":"SUM(S11:U11)","v":0},{"$f":"F31","v":0},{"$f":"J41","v":0},{"$f":"H31","v":0},{"$f":"I31","v":0},{"$f":"J31","v":0},{"$f":"J42","v":0},{"$f":"V3*J38","v":0},{"$f":"J43","v":0},{"$f":"J44","v":0},{"$f":"SUM(W11:AE11)*((1.5*O3)/160)","v":0},{"$f":"V11+AF11","v":0}]
[2,null,"NO",null,null,{"$f":"IF(ISBLANK(E12),\"\",IF(E12=\"Administrado\",R$3,IF(E12=\"Público\",R$4,R$5)))","v":""},null,{"$f":"IF(ISBLANK(G12),\"\",IF(G12=\"Público\",Y$3,IF(G12=\"Privado\",Y$4,Y$5)))","v":""},0]
[3,null,null,null,null,"",null,""]
[4,null,null,null,null,"",null,""]
[5,null,null,null,null,"",null,""]
[6,null,null,null,null,"",null,""]
[7,null,null,null,null,"",null,""]
[8,null,null,null,null,"",null,""]
[9,null,null,null,null,"",null,""]
[10,null,null,null,null,"",null,""]
[11,null,null,null,null,"",null,""]
[12,null,null,null,null,"",null,""]
[13,null,null,null,null,"",null,""]
[14,null,null,null,null,"",null,""]
[15,null,null,null,null,"",null,""]
[16,null,null,null,null,"",null,""]
[17,null,null,null,null,"",null,""]
[18,null,null,null,null,"",null,""]
[19,null,null,null,null,"",null,""]
[20,null,null,null,null,"",null,""]
[null,"TOTALES",null,{"$f":"SUM(D11:D30)","v":0},null,{"$f":"SUM(F11:F30)","v":0},null,0,{"$f":"SUM(I11:I30)","v":0},0]
[null,null,null,null,null,null,null,null,"*Para cálculo en horas, dividir los minutos para 60"]
[]
[null,"POR TRÁMITE"]
[null,null,null,null,null,null,null,null,null,null,null,null,null,null,null,null,null,null,null,null,null,null,null,null,null,null,null,null,null,null,null,null,null,null,"Totalmente en linea"]
[null,"COSTO ADMINISTRATIVO",null,"Costo del trámite (CT) (DÓLARES)",null,null,null,null,null,0,null,null,null,null,null,null,null,null,null,null,null,null,null,null,null,null,null,null,null,null,null,null,null,null,"No se completa totalmente en linea"]
[null,null,null,"*Tiempo de permanencia (TP) (HORAS)",null,null,null,null,null,0,"Totalmente en linea"]
[null,null,null,"Número de visitas a la institución (NV)",null,null,null,null,null,0]
[null,null,null,"Costo de Traslado (CTr)",null,null,null,null,null,{"$f":"J38*1","v":0}]
[]
[null,"COSTO DE OPORTUNIDAD",null,"*Realización de reuniones con el personal interno para la gestión del trámite en el caso de personas jurídicas (HORAS)",null,null,null,null,null,0,"Persona natural",null,null,null,null,null,null,null,null,null,null,null,null,null,null,null,null,null,null,null,null,null,null,null,null,"Jurídico","Público"]
[null,null,null,"*Llenado de formularios, elaboración de solicitudes y reportes (HORAS)",null,null,null,null,null,null,null,null,null,null,null,null,null,null,null,null,null,null,null,null,null,null,null,null,null,null,null,null,null,null,null,"Persona natural","Privado"]
[null,null,null,"*Tiempo de respuesta (HORAS LABORABLES) (Tiempo de Servicio) "]
[null,null,null,"*Otras actividades relacionadas con el trámite (HORAS)"]
[]
[null,"COSTO ADMINISTRATIVO",{"$f":"V11","v":0}]
[null,"COSTO OPORTUNIDAD (CO)",{"$f":"AF11","v":0}]
[null,"DIAGNÓSTICO ECONÓMICO DEL TRÁMITE (Carga administrativa (CgA))",{"$f":"AG11","v":0}]

{"sheet":"RESUMEN","index":4,"n_rows":5,"n_cols":17,"rows_kept":5,"cut":false,"hidden":true,"merged":[[2,2,2,5],[2,6,2,15]]}
[]
[]
[null,null,"COSTO ADMINISTRATIVO",null,null,null,"COSTO DE OPORTUNIDAD",null,null,null,null,null,null,null,null,null,"DIAGNÓSTICO ECONÓMICO DEL TRÁMITES"]
["IDENTIFICADOR","TRÁMITE","Costo de cumplimiento de requisitos para el administrado (CRT)","Costo de procedimiento realizado por el administrado (CP)","Costo de traslado (CT)","Costo Administrativo","Identificación y comprensión de los requisitos","Realización de reuniones con el personal interno para la gestión del trámite en el caso de personas jurídicas","Reuniones con personal de servicios externos","Recolección de información preexistente: ","Elaboración y generación de nueva información","Llenado de formularios, elaboración de solicitudes y reportes","Tiempo de traslados hacia y desde la administración","Tiempo de respuesta","Otras actividades relacionadas con el trámite","Costo Oportunidad (CO)","Carga administrativa (CgA)"]
[{"$f":"TRAMITE!D4","v":0},{"$f":"TRAMITE!D5","v":0},{"$f":"TRAMITE!D31+TRAMITE!J36","v":0},{"$f":"(TRAMITE!J37*1.5*TRAMITE!O3)/160","v":0},{"$f":"TRAMITE!J39","v":0},{"$f":"C5+D5+E5","v":0},{"$f":"TRAMITE!F31","v":0},{"$f":"TRAMITE!J41","v":0},{"$f":"TRAMITE!H31","v":0},{"$f":"TRAMITE!I31","v":0},{"$f":"TRAMITE!J31","v":0},{"$f":"TRAMITE!J42","v":0},{"$f":"TRAMITE!V3*TRAMITE!J38","v":0},{"$f":"TRAMITE!J43","v":0},{"$f":"TRAMITE!J44","v":0},{"$f":"SUM(F5:N5)*((1.5*TRAMITE!O3)/160)","v":0},{"$f":"F5+P5","v":0}]